fUSD/lending_fUSD_20250109
["ID","MTS","AMOUNT","RATE_DAILY","PERIOD"]
[348249203,1736417448707,-500.0,0.00010269,2]
[348249204,1736417448717,-500.0,0.00010269,2]
[348249205,1736417448726,-710.4,0.00010269,2]
[348249206,1736417448735,-500.0,0.00010269,2]
[348249207,1736417448744,-576.26,0.00010269,2]
[348249208,1736417448754,-500.0,0.00010269,2]
[348249209,1736417448763,-500.0,0.00010269,2]
[348249210,1736417448772,-500.0,0.00010269,2]
[348249211,1736417448783,-425.53715701,0.00010269,2]
[348249212,1736417448793,-593.84,0.00010269,2]
[348249213,1736417448802,-500.0,0.00010269,2]
[348249214,1736417448811,-500.0,0.00010269,2]
[348249215,1736417448821,-2904.71,0.00010269,2]
[348249216,1736417448830,-500.0,0.00010269,2]
[348249217,1736417448839,-2258.77,0.0001027,2]
[348249218,1736417448848,-500.0,0.0001027,2]
[348249219,1736417448857,-500.0,0.0001027,2]
[348249220,1736417448867,-1442.53,0.0001027,2]
[348249221,1736417448876,-500.0,0.0001027,2]
[348249222,1736417448885,-500.0,0.0001027,2]
[348249223,1736417448895,-527.49,0.0001027,2]
[348249224,1736417448904,-500.0,0.0001027,2]
[348249225,1736417448914,-500.0,0.0001027,2]
[348249226,1736417448923,-500.0,0.0001027,2]
[348249227,1736417448933,-500.0,0.0001027,2]
[348249228,1736417448942,-866.4,0.0001027,2]
[348249229,1736417448952,-859.95,0.0001027,2]
[348249230,1736417448962,-500.0,0.00010272,2]
[348249231,1736417448971,-500.0,0.00010272,2]
[348249232,1736417448981,-500.0,0.00010272,2]
[348249233,1736417448990,-940.54,0.00010272,2]
[348249234,1736417449000,-1539.71,0.00010272,2]
[348249235,1736417449010,-500.0,0.00010272,2]
[348249236,1736417449019,-682.59,0.00010272,2]
[348249237,1736417449029,-546.87,0.00010272,2]
[348249238,1736417449038,-500.0,0.00010272,2]
[348249239,1736417449047,-1658.5,0.00010272,2]
[348249240,1736417449056,-1232.96,0.00010272,2]
[348249241,1736417449065,-500.0,0.00010272,2]
[348249242,1736417449075,-1229.59,0.00010272,2]
[348249243,1736417449085,-500.0,0.00010273,2]
[348249244,1736417449094,-566.04,0.00010273,2]
[348249245,1736417449103,-500.0,0.00010273,2]
[348249246,1736417449112,-524.41,0.00010273,2]
[348249247,1736417449122,-500.0,0.00010273,2]
[348249248,1736417449132,-500.0,0.00010273,2]
[348249249,1736417449141,-500.0,0.00010273,2]
[348249250,1736417449151,-500.0,0.00010273,2]
[348249251,1736417449160,-768.28,0.00010273,2]
[348249252,1736417449170,-644.89,0.00010273,2]
[348249253,1736417449179,-954.81,0.00010273,2]
[348249254,1736417449190,-500.0,0.00010273,2]
[348249255,1736417449204,-586.73137509,0.00010314,2]
[348249256,1736417449214,-500.18752387,0.00010364,2]
[348249257,1736417449224,-586.73137509,0.00010417,2]
[348249258,1736417449234,-587.0,0.00010421,2]
[348249259,1736417449243,-794.08,0.0001044,2]
[348249260,1736417449254,-820.0,0.00010449,2]
[348249261,1736417449263,-1258.0,0.00010449,2]
[348249262,1736417449273,-915.0,0.00010449,2]
[348249263,1736417449283,-537.0,0.00010449,2]
[348249264,1736417449292,-3977.0,0.00010449,2]
[348249265,1736417449302,-150.0,0.00010449,2]
[348249266,1736417449311,-3895.0,0.00010449,2]
[348249267,1736417449321,-9622.0,0.00010449,2]
[348249268,1736417449330,-5321.13674112,0.000105,2]
[348249269,1736417449340,-762.24,0.00010517,2]
[348249270,1736417449349,-500.0,0.00010517,2]
[348249271,1736417449359,-500.0,0.00010517,2]
[348249272,1736417449369,-500.0,0.00010517,2]
[348249273,1736417449379,-500.0,0.00010517,2]
[348249274,1736417449389,-500.0,0.00010517,2]
[348249275,1736417449399,-247.36,0.00010517,2]
[348249276,1736417449408,-500.0,0.00010517,2]
[348249277,1736417449418,-500.0,0.00010517,2]
[348249278,1736417449428,-500.0,0.00010517,2]
[348249279,1736417449438,-500.0,0.00010517,2]
[348249280,1736417449449,-500.0,0.00010517,2]
[348249281,1736417449459,-500.0,0.00010517,2]
[348249282,1736417449469,-500.0,0.00010517,2]
[348249283,1736417449479,-500.0,0.00010517,2]
[348249284,1736417449488,-182.48,0.00010517,2]
[348249285,1736417449497,-500.0,0.00010517,2]
[348249286,1736417449506,-500.0,0.00010517,2]
[348249287,1736417449516,-500.0,0.00010517,2]
[348249288,1736417449526,-500.0,0.00010517,2]
[348249289,1736417449535,-500.0,0.00010517,2]
[348249290,1736417449545,-500.0,0.00010517,2]
[348249291,1736417449554,-500.0,0.00010517,2]
[348249292,1736417449563,-500.0,0.00010517,2]
[348249293,1736417449574,-500.0,0.00010517,2]
[348249294,1736417449584,-500.0,0.00010517,2]
[348249295,1736417449593,-219.38,0.00010517,2]
[348249296,1736417449603,-270.19,0.00010517,2]
[348249297,1736417449612,-500.0,0.00010517,2]
[348249298,1736417449621,-500.0,0.00010517,2]
[348249299,1736417449629,-500.0,0.00010517,2]
[348249300,1736417449638,-500.0,0.00010517,2]
[348249301,1736417449648,-500.0,0.00010517,2]
[348249302,1736417449658,-500.0,0.00010517,2]
[348249303,1736417449667,-500.0,0.00010517,2]
[348249304,1736417449675,-500.0,0.00010517,2]
[348249305,1736417449684,-500.0,0.00010517,2]
[348249306,1736417449693,-500.0,0.00010517,2]
[348249307,1736417449702,-500.0,0.00010517,2]
[348249308,1736417449711,-484.12,0.00010517,2]
[348249309,1736417449720,-500.0,0.00010517,2]
[348249310,1736417449728,-512.36,0.00010517,2]
[348249311,1736417449737,-492.92,0.00010517,2]
[348249312,1736417449745,-219.91708801,0.00010517,2]
[348249313,1736417449754,-401.6,0.00010517,2]
[348249314,1736417449763,-500.0,0.00010517,2]
[348249315,1736417449772,-534.03933873,0.00010517,2]
[348249316,1736417449781,-601.3,0.00010517,2]
[348249317,1736417449790,-500.0,0.00010517,2]
[348249318,1736417449798,-500.0,0.00010517,2]
[348249319,1736417449807,-500.0,0.00010517,2]
[348249320,1736417449816,-500.0,0.00010517,2]
[348249321,1736417449824,-500.0,0.00010517,2]
[348249322,1736417449832,-500.0,0.00010517,2]
[348249323,1736417449841,-176.80325298,0.00010517,2]
[348249324,1736417449849,-500.0,0.00010517,2]
[348249325,1736417449856,-500.0,0.00010517,2]
[348249326,1736417449863,-500.0,0.00010517,2]
[348249327,1736417449870,-500.0,0.00010517,2]
[348249328,1736417449876,-500.0,0.00010517,2]
[348249329,1736417449883,-500.0,0.00010517,2]
[348249330,1736417449890,-406.70483448,0.00010517,2]
[348249331,1736417449899,-627.16,0.00010517,2]
[348249332,1736417449907,-500.0,0.00010517,2]
[348249333,1736417449914,-500.0,0.00010517,2]
[348249334,1736417449921,-500.0,0.00010517,2]
[348249335,1736417449929,-500.0,0.00010517,2]
[348249336,1736417449936,-500.0,0.00010517,2]
[348249337,1736417449943,-561.56,0.00010517,2]
[348249338,1736417449952,-512.50145453,0.00010517,2]
[348249339,1736417449959,-500.0,0.00010517,2]
[348249340,1736417449968,-500.0,0.00010517,2]
[348249341,1736417449976,-395.29,0.00010517,2]
[348249342,1736417449984,-500.0,0.00010517,2]
[348249343,1736417449991,-378.63,0.00010517,2]
[348249344,1736417449998,-500.0,0.00010517,2]
[348249345,1736417450005,-246.12,0.00010517,2]
[348249346,1736417450013,-500.0,0.00010517,2]
[348249347,1736417450020,-390.10719794,0.00010517,2]
[348249348,1736417450027,-500.0,0.00010517,2]
[348249349,1736417450034,-501.02287749,0.00010517,2]
[348249350,1736417450040,-500.0,0.00010517,2]
[348249351,1736417450047,-500.0,0.00010517,2]
[348249352,1736417450054,-500.0,0.00010517,2]
[348249353,1736417450061,-500.0,0.00010517,2]
[348249354,1736417450068,-218.20622218,0.00010517,2]
[348249355,1736417450075,-500.0,0.00010517,2]
[348249356,1736417450081,-161.62,0.00010517,2]
[348249357,1736417450088,-500.0,0.00010517,2]
[348249358,1736417450095,-225.49582027,0.00010517,2]
[348249359,1736417450102,-500.0,0.00010517,2]
[348249360,1736417450109,-500.0,0.00010517,2]
[348249361,1736417450117,-500.0,0.00010517,2]
[348249362,1736417450124,-500.0,0.00010517,2]
[348249363,1736417450130,-500.0,0.00010517,2]
[348249364,1736417450139,-500.0,0.00010517,2]
[348249365,1736417450146,-422.15349019,0.00010517,2]
[348249366,1736417450154,-172.59,0.00010517,2]
[348249367,1736417450162,-500.0,0.00010517,2]
[348249368,1736417450169,-500.0,0.00010517,2]
[348249369,1736417450176,-500.0,0.00010517,2]
[348249370,1736417450184,-500.0,0.00010517,2]
[348249371,1736417450201,-500.0,0.00010517,2]
[348249372,1736417450209,-500.0,0.00010517,2]
[348249373,1736417450217,-500.0,0.00010517,2]
[348249374,1736417450226,-500.0,0.00010517,2]
[348249375,1736417450237,-500.0,0.00010517,2]
[348249376,1736417450247,-500.0,0.00010517,2]
[348249377,1736417450257,-500.0,0.00010517,2]
[348249378,1736417450267,-500.0,0.00010517,2]
[348249379,1736417450278,-500.0,0.00010517,2]
[348249380,1736417450289,-500.0,0.00010517,2]
[348249381,1736417450298,-500.0,0.00010518,2]
[348249382,1736417450308,-500.0,0.00010518,2]
[348249383,1736417450318,-500.0,0.00010518,2]
[348249384,1736417450328,-500.0,0.00010518,2]
[348249385,1736417450338,-760.93,0.00010518,2]
[348249386,1736417450347,-500.0,0.00010518,2]
[348249387,1736417450357,-690.41,0.00010518,2]
[348249388,1736417450367,-500.0,0.00010518,2]
[348249389,1736417450376,-500.0,0.00010519,2]
[348249390,1736417450386,-500.0,0.00010519,2]
[348249391,1736417450395,-559.88,0.00010519,2]
[348249392,1736417450405,-1489.9,0.00010519,2]
[348249393,1736417450414,-642.24,0.00010519,2]
[348249394,1736417450424,-1609.76,0.0001052,2]
[348249395,1736417450434,-544.76,0.0001052,2]
[348249396,1736417450443,-530.53,0.0001052,2]
[348249397,1736417450454,-669.23,0.0001052,2]
[348249398,1736417450463,-586.73137509,0.00010521,2]
[348249399,1736417450472,-868.38,0.00010543,2]
[348249400,1736417450482,-500.0,0.00010543,2]
[348249401,1736417450491,-572.35,0.00010543,2]
[348249402,1736417450501,-500.0,0.00010543,2]
[348249403,1736417450510,-500.0,0.00010543,2]
[348249404,1736417450519,-500.0,0.00010543,2]
[348249405,1736417450529,-500.0,0.00010543,2]
[348249406,1736417450538,-710.4,0.00010543,2]
[348249407,1736417450548,-346.13,0.00010543,2]
[348249408,1736417450557,-576.26,0.00010543,2]
[348249409,1736417450567,-500.0,0.00010543,2]
[348249410,1736417450576,-500.0,0.00010543,2]
[348249411,1736417450585,-593.84,0.00010543,2]
[348249412,1736417450594,-371.26382288,0.00010543,2]
[348249413,1736417450603,-508.32,0.00010543,2]
[348249414,1736417450612,-2904.71,0.00010543,2]
[348249415,1736417450621,-2258.77,0.00010544,2]
[348249416,1736417450630,-500.0,0.00010544,2]
[348249417,1736417450639,-221.64879925,0.00010544,2]
[348249418,1736417450648,-1442.53,0.00010544,2]
[348249419,1736417450657,-500.0,0.00010544,2]
[348249420,1736417450666,-500.0,0.00010544,2]
[348249421,1736417450674,-527.49,0.00010544,2]
[348249422,1736417450683,-500.0,0.00010544,2]
[348249423,1736417450692,-500.0,0.00010544,2]
[348249424,1736417450702,-500.0,0.00010544,2]
[348249425,1736417450711,-500.0,0.00010544,2]
[348249426,1736417450720,-866.4,0.00010544,2]
[348249427,1736417450729,-859.95,0.00010544,2]
[348249428,1736417450737,-500.0,0.00010546,2]
[348249429,1736417450746,-500.0,0.00010546,2]
[348249430,1736417450754,-645.9,0.00010546,2]
[348249431,1736417450764,-940.54,0.00010546,2]
[348249432,1736417450773,-1539.71,0.00010546,2]
[348249433,1736417450783,-500.0,0.00010546,2]
[348249434,1736417450792,-682.59,0.00010546,2]
[348249435,1736417450802,-546.87,0.00010546,2]
[348249436,1736417450812,-500.0,0.00010546,2]
[348249437,1736417450822,-1658.5,0.00010546,2]
[348249438,1736417450831,-1232.96,0.00010546,2]
[348249439,1736417450841,-500.0,0.00010546,2]
[348249440,1736417450851,-1229.59,0.00010546,2]
[348249441,1736417450860,-500.0,0.00010547,2]
[348249442,1736417450870,-566.04,0.00010547,2]
[348249443,1736417450879,-500.0,0.00010547,2]
[348249444,1736417450888,-524.41,0.00010547,2]
[348249445,1736417450897,-452.89877988,0.00010547,2]
[348249446,1736417450907,-500.0,0.00010547,2]
[348249447,1736417450916,-500.0,0.00010547,2]
[348249448,1736417450924,-500.0,0.00010547,2]
[348249449,1736417450933,-768.28,0.00010547,2]
[348249450,1736417450942,-644.89,0.00010547,2]
[348249451,1736417450952,-954.81,0.00010547,2]
[348249452,1736417450962,-500.0,0.00010547,2]
[348249453,1736417450972,-586.73137509,0.00010624,2]
[348249454,1736417450981,-2015.0,0.00010627,2]
[348249455,1736417450990,-1267.0,0.00010627,2]
[348249456,1736417451000,-150.0,0.00010627,2]
[348249457,1736417451010,-635.0,0.00010627,2]
[348249458,1736417451020,-566.0,0.00010627,2]
[348249459,1736417451029,-1861.0,0.00010627,2]
[348249460,1736417451039,-3777.0,0.00010627,2]
[348249461,1736417451049,-1103.0,0.00010627,2]
[348249462,1736417451059,-166.7,0.00010647,2]
[348249463,1736417451069,-1000.0,0.00010724,2]
[348249464,1736417451079,-586.73137509,0.00010728,2]
[348249465,1736417451089,-500.0,0.00010791,2]
[348249466,1736417451099,-509.1,0.00010791,2]
[348249467,1736417451110,-818.03,0.00010791,2]
[348249468,1736417451120,-500.0,0.00010791,2]
[348249469,1736417451130,-500.0,0.00010791,2]
[348249470,1736417451140,-489.865237,0.00010791,2]
[348249471,1736417451150,-1273.24,0.00010791,2]
[348249472,1736417451160,-499.822727,0.00010791,2]
[348249473,1736417451170,-500.0,0.00010791,2]
[348249474,1736417451180,-155.415242,0.00010791,2]
[348249475,1736417451191,-500.0,0.00010791,2]
[348249476,1736417451205,-166.136689,0.00010791,2]
[348249477,1736417451215,-500.0,0.00010791,2]
[348249478,1736417451224,-762.24,0.00010791,2]
[348249479,1736417451234,-500.0,0.00010791,2]
[348249480,1736417451246,-343.8,0.00010791,2]
[348249481,1736417451256,-500.0,0.00010791,2]
[348249482,1736417451267,-500.0,0.00010791,2]
[348249483,1736417451436,-1290.61,0.00010791,2]
[348249484,1736417451446,-500.0,0.00010791,2]
[348249485,1736417451456,-500.0,0.00010791,2]
[348249486,1736417451465,-500.0,0.00010791,2]
[348249487,1736417451475,-210.0,0.00010791,2]
[348249488,1736417451484,-500.0,0.00010791,2]
[348249489,1736417451493,-500.0,0.00010791,2]
[348249490,1736417451502,-500.0,0.00010791,2]
[348249491,1736417451512,-500.0,0.00010791,2]
[348249492,1736417451521,-500.0,0.00010791,2]
[348249493,1736417451530,-500.0,0.00010791,2]
[348249494,1736417451539,-325.2124769,0.00010791,2]
[348249495,1736417451548,-500.0,0.00010791,2]
[348249496,1736417451557,-500.0,0.00010791,2]
[348249497,1736417451566,-500.0,0.00010791,2]
[348249498,1736417451575,-500.0,0.00010791,2]
[348249499,1736417451584,-500.0,0.00010791,2]
[348249500,1736417451593,-500.0,0.00010791,2]
[348249501,1736417451603,-500.0,0.00010791,2]
[348249502,1736417451612,-500.0,0.00010791,2]
[348249503,1736417451622,-500.0,0.00010791,2]
[348249504,1736417451631,-500.0,0.00010791,2]
[348249505,1736417451641,-500.0,0.00010791,2]
[348249506,1736417451651,-500.0,0.00010791,2]
[348249507,1736417451662,-500.0,0.00010791,2]
[348249508,1736417451671,-500.0,0.00010791,2]
[348249509,1736417451680,-500.0,0.00010791,2]
[348249510,1736417451689,-500.0,0.00010791,2]
[348249511,1736417451699,-500.0,0.00010791,2]
[348249512,1736417451707,-500.0,0.00010791,2]
[348249513,1736417451716,-500.0,0.00010791,2]
[348249514,1736417451724,-581.83,0.00010791,2]
[348249515,1736417451733,-500.0,0.00010791,2]
[348249516,1736417451742,-500.0,0.00010791,2]
[348249517,1736417451751,-500.0,0.00010791,2]
[348249518,1736417451760,-500.0,0.00010791,2]
[348249519,1736417451771,-500.0,0.00010791,2]
[348249520,1736417451781,-922.68,0.00010791,2]
[348249521,1736417451791,-353.95807126,0.00010791,2]
[348249522,1736417451800,-500.0,0.00010791,2]
[348249523,1736417451810,-500.0,0.00010791,2]
[348249524,1736417451820,-500.0,0.00010791,2]
[348249525,1736417451829,-500.0,0.00010791,2]
[348249526,1736417451839,-500.0,0.00010791,2]
[348249527,1736417451848,-500.0,0.00010791,2]
[348249528,1736417451858,-646.44,0.00010791,2]
[348249529,1736417451867,-983.43,0.00010791,2]
[348249530,1736417451876,-500.0,0.00010791,2]
[348249531,1736417451886,-592.50342998,0.00010791,2]
[348249532,1736417451896,-594.25,0.00010791,2]
[348249533,1736417451906,-500.0,0.00010791,2]
[348249534,1736417451916,-500.0,0.00010791,2]
[348249535,1736417451925,-285.2,0.00010791,2]
[348249536,1736417451935,-500.0,0.00010791,2]
[348249537,1736417451944,-1589.06,0.00010791,2]
[348249538,1736417451954,-500.0,0.00010791,2]
[348249539,1736417451964,-500.0,0.00010791,2]
[348249540,1736417451973,-500.0,0.00010791,2]
[348249541,1736417451983,-500.0,0.00010791,2]
[348249542,1736417451993,-500.0,0.00010791,2]
[348249543,1736417452002,-500.0,0.00010791,2]
[348249544,1736417452013,-500.0,0.00010791,2]
[348249545,1736417452022,-500.0,0.00010791,2]
[348249546,1736417452031,-500.0,0.00010791,2]
[348249547,1736417452040,-190.397356,0.00010791,2]
[348249548,1736417452051,-170.749179,0.00010791,2]
[348249549,1736417452060,-321.48100666,0.00010791,2]
[348249550,1736417452070,-360.16,0.00010792,2]
[348249551,1736417452079,-500.0,0.00010792,2]
[348249552,1736417452089,-500.0,0.00010792,2]
[348249553,1736417452098,-500.0,0.00010792,2]
[348249554,1736417452108,-760.93,0.00010792,2]
[348249555,1736417452118,-500.0,0.00010792,2]
[348249556,1736417452127,-690.41,0.00010792,2]
[348249557,1736417452137,-500.0,0.00010792,2]
[348249558,1736417452147,-500.0,0.00010793,2]
[348249559,1736417452156,-500.0,0.00010793,2]
[348249560,1736417452166,-559.88,0.00010793,2]
[348249561,1736417452175,-1489.9,0.00010793,2]
[348249562,1736417452186,-642.24,0.00010793,2]
[348249563,1736417452198,-1609.76,0.00010794,2]
[348249564,1736417452208,-544.76,0.00010794,2]
[348249565,1736417452218,-530.53,0.00010794,2]
[348249566,1736417452227,-868.38,0.00010817,2]
[348249567,1736417452239,-500.0,0.00010817,2]
[348249568,1736417452248,-572.35,0.00010817,2]
[348249569,1736417452258,-500.0,0.00010817,2]
[348249570,1736417452267,-500.0,0.00010817,2]
[348249571,1736417452278,-500.0,0.00010817,2]
[348249572,1736417452288,-500.0,0.00010817,2]
[348249573,1736417452298,-710.4,0.00010817,2]
[348249574,1736417452307,-576.26,0.00010817,2]
[348249575,1736417452317,-500.0,0.00010817,2]
[348249576,1736417452327,-500.0,0.00010817,2]
[348249577,1736417452339,-593.84,0.00010817,2]
[348249578,1736417452349,-2904.71,0.00010817,2]
[348249579,1736417452358,-2258.77,0.00010818,2]
[348249580,1736417452368,-500.0,0.00010818,2]
[348249581,1736417452378,-1442.53,0.00010818,2]
[348249582,1736417452388,-500.0,0.00010818,2]
[348249583,1736417452397,-500.0,0.00010818,2]
[348249584,1736417452407,-527.49,0.00010818,2]
[348249585,1736417452416,-500.0,0.00010818,2]
[348249586,1736417452426,-500.0,0.00010818,2]
[348249587,1736417452435,-500.0,0.00010818,2]
[348249588,1736417452445,-500.0,0.00010818,2]
[348249589,1736417452455,-866.4,0.00010818,2]
[348249590,1736417452465,-859.95,0.00010818,2]
[348249591,1736417452474,-500.0,0.0001082,2]
[348249592,1736417452484,-500.0,0.0001082,2]
[348249593,1736417452493,-940.54,0.0001082,2]
[348249594,1736417452503,-1539.71,0.0001082,2]
[348249595,1736417452512,-500.0,0.0001082,2]
[348249596,1736417452522,-682.59,0.0001082,2]
[348249597,1736417452531,-546.87,0.0001082,2]
[348249598,1736417452541,-500.0,0.0001082,2]
[348249599,1736417452550,-1658.5,0.0001082,2]
[348249600,1736417452560,-1232.96,0.0001082,2]
[348249601,1736417452570,-465.98,0.0001082,2]
[348249602,1736417452580,-1229.59,0.0001082,2]
[348249603,1736417452589,-500.0,0.00010821,2]
[348249604,1736417452598,-566.04,0.00010821,2]
[348249605,1736417452608,-500.0,0.00010821,2]
[348249606,1736417452618,-524.41,0.00010821,2]
[348249607,1736417452627,-500.0,0.00010821,2]
[348249608,1736417452636,-265.35,0.00010821,2]
[348249609,1736417452646,-500.0,0.00010821,2]
[348249610,1736417452656,-768.28,0.00010821,2]
[348249611,1736417452665,-644.89,0.00010821,2]
[348249612,1736417452675,-954.81,0.00010821,2]
[348249613,1736417452684,-500.0,0.00010821,2]
[348249614,1736417452694,-586.73137509,0.00010831,2]
[348249615,1736417452704,-586.73137509,0.00010934,2]
[348249616,1736417452714,-999.0,0.00010958,2]
[348249617,1736417452723,-150.0,0.00010959,2]
[348249618,1736417452733,-500.0,0.00010986,2]
[348249619,1736417452743,-150.0,0.00010991,2]
[348249620,1736417452752,-500.0,0.00010999,2]
[348249621,1736417452761,-500.0,0.00010999,2]
[348249622,1736417452771,-50000.0,0.00011,2]
[348249623,1736417452779,-151.31,0.00011019,2]
[348249624,1736417452789,-1611.58331674,0.00011025,2]
[348249625,1736417452799,-586.73137509,0.00011038,2]
[348249626,1736417452808,-500.0,0.00011065,2]
[348249627,1736417452817,-509.1,0.00011065,2]
[348249628,1736417452827,-818.03,0.00011065,2]
[348249629,1736417452836,-500.0,0.00011065,2]
[348249630,1736417452845,-500.0,0.00011065,2]
[348249631,1736417452855,-489.865237,0.00011065,2]
[348249632,1736417452864,-1273.24,0.00011065,2]
[348249633,1736417452873,-499.822727,0.00011065,2]
[348249634,1736417452883,-500.0,0.00011065,2]
[348249635,1736417452892,-500.0,0.00011065,2]
[348249636,1736417452901,-500.0,0.00011065,2]
[348249637,1736417452910,-762.24,0.00011065,2]
[348249638,1736417452919,-500.0,0.00011065,2]
[348249639,1736417452929,-1290.61,0.00011065,2]
[348249640,1736417452939,-500.0,0.00011065,2]
[348249641,1736417452949,-497.72,0.00011065,2]
[348249642,1736417452958,-501.2,0.00011065,2]
[348249643,1736417452968,-500.0,0.00011065,2]
[348249644,1736417452977,-500.0,0.00011065,2]
[348249645,1736417452987,-500.0,0.00011065,2]
[348249646,1736417452996,-500.0,0.00011065,2]
[348249647,1736417453006,-500.0,0.00011065,2]
[348249648,1736417453016,-500.0,0.00011065,2]
[348249649,1736417453025,-500.0,0.00011065,2]
[348249650,1736417453034,-500.0,0.00011065,2]
[348249651,1736417453043,-500.0,0.00011065,2]
[348249652,1736417453052,-500.0,0.00011065,2]
[348249653,1736417453061,-500.0,0.00011065,2]
[348249654,1736417453071,-500.0,0.00011065,2]
[348249655,1736417453080,-500.0,0.00011065,2]
[348249656,1736417453090,-298.96,0.00011065,2]
[348249657,1736417453099,-500.0,0.00011065,2]
[348249658,1736417453109,-500.0,0.00011065,2]
[348249659,1736417453117,-500.0,0.00011065,2]
[348249660,1736417453127,-500.0,0.00011065,2]
[348249661,1736417453136,-500.0,0.00011065,2]
[348249662,1736417453145,-500.0,0.00011065,2]
[348249663,1736417453155,-581.83,0.00011065,2]
[348249664,1736417453164,-500.0,0.00011065,2]
[348249665,1736417453173,-500.0,0.00011065,2]
[348249666,1736417453182,-311.60533348,0.00011065,2]
[348249667,1736417453193,-500.0,0.00011065,2]
[348249668,1736417453204,-564.90079383,0.00011065,2]
[348249669,1736417453213,-922.68,0.00011065,2]
[348249670,1736417453222,-500.0,0.00011065,2]
[348249671,1736417453232,-573.22597474,0.00011065,2]
[348249672,1736417453242,-500.0,0.00011065,2]
[348249673,1736417453251,-500.0,0.00011065,2]
[348249674,1736417453260,-500.0,0.00011065,2]
[348249675,1736417453270,-420.75,0.00011065,2]
[348249676,1736417453279,-983.43,0.00011065,2]
[348249677,1736417453288,-500.0,0.00011065,2]
[348249678,1736417453297,-594.25,0.00011065,2]
[348249679,1736417453307,-500.0,0.00011065,2]
[348249680,1736417453316,-500.0,0.00011065,2]
[348249681,1736417453325,-500.0,0.00011065,2]
[348249682,1736417453333,-1589.06,0.00011065,2]
[348249683,1736417453342,-500.0,0.00011065,2]
[348249684,1736417453350,-500.0,0.00011065,2]
[348249685,1736417453359,-500.0,0.00011065,2]
[348249686,1736417453367,-500.0,0.00011065,2]
[348249687,1736417453376,-500.0,0.00011065,2]
[348249688,1736417453385,-500.0,0.00011065,2]
[348249689,1736417453393,-500.0,0.00011065,2]
[348249690,1736417453402,-500.0,0.00011065,2]
[348249691,1736417453411,-500.0,0.00011066,2]
[348249692,1736417453419,-500.0,0.00011066,2]
[348249693,1736417453429,-500.0,0.00011066,2]
[348249694,1736417453438,-760.93,0.00011066,2]
[348249695,1736417453448,-500.0,0.00011066,2]
[348249696,1736417453457,-690.41,0.00011066,2]
[348249697,1736417453466,-500.0,0.00011066,2]
[348249698,1736417453475,-500.0,0.00011067,2]
[348249699,1736417453485,-559.88,0.00011067,2]
[348249700,1736417453494,-1489.9,0.00011067,2]
[348249701,1736417453503,-642.24,0.00011067,2]
[348249702,1736417453511,-1609.76,0.00011068,2]